[Event "44th Chess Olympiad Women 2022"]
[Site "Chennai"]
[Date "2022.08.07"]
[Round "9.29"]
[White "Mayrhuber, Nikola"]
[Black "Paulo, Jemima"]
[Result "1-0"]
[WhiteElo "2141"]
[BlackElo "1850"]
[Annotator "NA COMBH"]
[PlyCount "83"]
[EventDate "2022.??.??"]
[TimeControl "60"]

1. d4 {[%emt 0:00:03]} Nf6 {[%emt 0:00:06]} 2. c4 {[%emt 0:00:04]} g6 {[%emt 0:
00:00]} 3. Nc3 {[%emt 0:00:05]} Bg7 {[%emt 0:00:07]} 4. e4 {[%emt 0:00:15]} d6
{[%emt 0:00:09]} 5. f4 {[%emt 0:00:16]} O-O {[%emt 0:00:11]} 6. Nf3 {[%emt 0:
00:00]} c5 {[%emt 0:00:13]} 7. d5 {[%emt 0:00:07]} e6 {[%emt 0:00:25]} 8. dxe6
{[%emt 0:00:15]} fxe6 {[%emt 0:00:22]} 9. Bd3 {[%emt 0:00:12]} Nc6 {[%emt 0:00:
00]} 10. O-O {[%emt 0:00:09]} Nd4 {[%emt 0:00:12]} 11. Nxd4 {[%emt 0:00:18]}
cxd4 {[%emt 0:01:01]} 12. Nb5 {[%emt 0:00:08]} e5 {[%emt 0:00:40]} 13. fxe5 {
[%emt 0:00:12]} dxe5 {[%emt 0:00:09]} 14. c5 {[%emt 0:00:12]} Be6 {[%emt 0:00:
00]} 15. Qc2 {[%emt 0:02:09]} Qd7 {[%emt 0:06:55]} 16. Nd6 {[%emt 0:03:48]} b6
{[%emt 0:05:36]} 17. b4 {[%emt 0:07:23]} a5 {[%emt 0:03:21]} 18. Nc4 {[%emt 0:
00:00]} bxc5 {[%emt 0:07:13]} 19. Nb6 {[%emt 0:09:40]} Qc6 {[%emt 0:00:40]} 20.
Nxa8 {[%emt 0:00:21]} c4 {[%emt 0:00:47]} 21. bxa5 {[%emt 0:22:58]} Rxa8 {
[%emt 0:00:12]} 22. Bg5 {[%emt 0:00:17]} Nd7 {[%emt 0:01:31]} 23. Rfc1 {
[%emt 0:05:11]} Rc8 {[%emt 0:00:27]} 24. Rab1 {[%emt 0:02:37]} Qc5 {[%emt 0:00:
00]} 25. Qa4 {[%emt 0:02:06]} Qc7 {[%emt 0:01:26]} 26. Bxc4 {[%emt 0:07:11]}
Bxc4 {[%emt 0:03:44]} 27. Rb4 {[%emt 0:00:27]} Qa7 {[%emt 0:00:12]} 28. Rbxc4 {
[%emt 0:02:06]} d3+ {[%emt 0:00:10]} 29. Kh1 {[%emt 0:01:10]} Rf8 {[%emt 0:00:
00]} 30. Rc8 {[%emt 0:04:19]} h6 {[%emt 0:00:24]} 31. Rxf8+ {[%emt 0:02:03]}
Nxf8 {[%emt 0:00:14]} 32. Bd2 {[%emt 0:00:32]} Kh7 {[%emt 0:02:02]} 33. Qb5 {
[%emt 0:01:39]} Qd4 {[%emt 0:00:28]} 34. Qc4 {[%emt 0:01:25]} Qf2 {[%emt 0:00:
00]} 35. Qxd3 {[%emt 0:00:31]} Ne6 {[%emt 0:00:11]} 36. Rf1 {[%emt 0:02:22]}
Qa7 {[%emt 0:00:36]} 37. h3 {[%emt 0:00:57]} Nc5 {[%emt 0:01:52]} 38. Qc4 {
[%emt 0:00:20]} Nd7 {[%emt 0:06:29]} 39. Rf7 {[%emt 0:02:20]} Qb7 {[%emt 0:00:
00]} 40. Kh2 {[%emt 0:00:51]} Nb6 {[%emt 0:02:05]} 41. axb6 {[%emt 0:04:04]}
Qxb6 {[%emt 0:00:17]} 42. Qc7 {[%emt 0:00:54]} 1-0

[Event "44th Chess Olympiad Women 2022"]
[Site "Chennai"]
[Date "2022.08.07"]
[Round "9.29"]
[White "Newrkla, Katharina"]
[Black "Caxita, Esperanca"]
[Result "1-0"]
[WhiteElo "2265"]
[BlackElo "1955"]
[Annotator "NA RC"]
[PlyCount "43"]
[EventDate "2022.??.??"]
[TimeControl "60"]

1. e4 {[%emt 0:00:03]} d5 {[%emt 0:00:12]} 2. exd5 {[%emt 0:00:06]} Qxd5 {
[%emt 0:00:10]} 3. Nc3 {[%emt 0:00:06]} Qd6 {[%emt 0:00:06]} 4. d4 {[%emt 0:00:
00]} Nf6 {[%emt 0:00:15]} 5. Nf3 {[%emt 0:00:07]} a6 {[%emt 0:00:15]} 6. g3 {
[%emt 0:01:09]} Bg4 {[%emt 0:00:35]} 7. h3 {[%emt 0:00:43]} Bh5 {[%emt 0:01:44]
} 8. Bg2 {[%emt 0:06:01]} Nc6 {[%emt 0:00:15]} 9. Bf4 {[%emt 0:00:52]} Qb4 {
[%emt 0:03:34]} 10. O-O {[%emt 0:02:03]} Qxb2 {[%emt 0:07:50]} 11. Qd2 {
[%emt 0:19:10]} Qb6 {[%emt 0:01:54]} 12. Rab1 {[%emt 0:03:15]} Qa7 {[%emt 0:00:
00]} 13. Ne5 {[%emt 0:09:48]} Nd8 {[%emt 0:06:03]} 14. g4 {[%emt 0:10:21]} Bg6
{[%emt 0:04:52]} 15. g5 {[%emt 0:04:03]} Nd7 {[%emt 0:03:07]} 16. Nd5 {[%emt 0:
00:00]} Rc8 {[%emt 0:03:39]} 17. Nxg6 {[%emt 0:03:06]} fxg6 {[%emt 0:04:08]}
18. Nxc7+ {[%emt 0:01:03]} Kf7 {[%emt 0:02:34]} 19. Bd5+ {[%emt 0:02:47]} e6 {
[%emt 0:08:01]} 20. Nxe6 {[%emt 0:02:06]} Nc6 {[%emt 0:14:14]} 21. Nc7+ {
[%emt 0:07:35]} Ke7 {[%emt 0:04:33]} 22. Qe3+ {[%emt 0:00:29]} 1-0

[Event "44th Chess Olympiad Women 2022"]
[Site "Chennai"]
[Date "2022.08.07"]
[Round "9.30"]
[White "Antonova, Nadezhda"]
[Black "Guindy, Esmat Susanne"]
[Result "1-0"]
[WhiteElo "1832"]
[BlackElo "2097"]
[Annotator "NA RC"]
[PlyCount "57"]
[EventDate "2022.??.??"]
[TimeControl "60"]

1. Nf3 {[%emt 0:00:03]} d5 {[%emt 0:00:08]} 2. b3 {[%emt 0:00:08]} c5 {[%emt 0:
00:00]} 3. e3 {[%emt 0:00:20]} Nf6 {[%emt 0:00:50]} 4. Bb2 {[%emt 0:00:23]} e6
{[%emt 0:02:02]} 5. Bb5+ {[%emt 0:01:16]} Bd7 {[%emt 0:00:31]} 6. Qe2 {[%emt 0:
00:00]} Bd6 {[%emt 0:09:13]} 7. Ne5 {[%emt 0:01:37]} a6 {[%emt 0:03:45]} 8.
Bxd7+ {[%emt 0:01:52]} Nbxd7 {[%emt 0:00:10]} 9. f4 {[%emt 0:05:11]} Qc7 {
[%emt 0:04:55]} 10. Nxd7 {[%emt 0:03:09]} Qxd7 {[%emt 0:02:32]} 11. d3 {
[%emt 0:04:35]} Qc7 {[%emt 0:01:35]} 12. O-O {[%emt 0:07:39]} O-O-O {[%emt 0:
00:00]} 13. Nd2 {[%emt 0:10:48]} e5 {[%emt 0:03:19]} 14. e4 {[%emt 0:00:40]}
dxe4 {[%emt 0:07:51]} 15. dxe4 {[%emt 0:19:41]} exf4 {[%emt 0:12:03]} 16. e5 {
[%emt 0:02:34]} Rhe8 {[%emt 0:04:26]} 17. Nc4 {[%emt 0:02:21]} Bf8 {[%emt 0:00:
00]} 18. Rxf4 {[%emt 0:01:34]} Nd5 {[%emt 0:03:58]} 19. Qg4+ {[%emt 0:08:16]}
Re6 {[%emt 0:03:38]} 20. Rf3 {[%emt 0:01:24]} b5 {[%emt 0:02:22]} 21. Raf1 {
[%emt 0:00:39]} bxc4 {[%emt 0:09:22]} 22. Rxf7 {[%emt 0:00:25]} Qc6 {[%emt 0:
00:00]} 23. Rxf8 {[%emt 0:01:24]} Rxf8 {[%emt 0:01:02]} 24. Rxf8+ {[%emt 0:00:
00]} Kb7 {[%emt 0:00:09]} 25. Qxg7+ {[%emt 0:02:14]} Kb6 {[%emt 0:02:19]} 26.
bxc4 {[%emt 0:02:45]} Ne7 {[%emt 0:04:07]} 27. Rf6 {[%emt 0:00:30]} Kc7 {
[%emt 0:03:12]} 28. Qf7 {[%emt 0:01:39]} Kd7 {[%emt 0:00:16]} 29. h3 {[%emt 0:
00:00]} 1-0

[Event "44th Chess Olympiad Women 2022"]
[Site "Chennai"]
[Date "2022.08.07"]
[Round "9.30"]
[White "Fredericia, Louise"]
[Black "Hotami, Mutriba"]
[Result "1-0"]
[WhiteElo "1990"]
[BlackElo "1846"]
[Annotator "NA"]
[PlyCount "67"]
[EventDate "2022.??.??"]
[TimeControl "60"]

1. f4 {[%emt 0:00:17]} d5 {[%emt 0:01:43]} 2. b3 {[%emt 0:00:25]} Nf6 {[%emt 0:
00:00]} 3. Bb2 {[%emt 0:00:09]} e6 {[%emt 0:01:12]} 4. Nf3 {[%emt 0:00:10]} c5
{[%emt 0:00:46]} 5. e3 {[%emt 0:00:28]} Nc6 {[%emt 0:00:39]} 6. Bb5 {[%emt 0:
00:00]} Be7 {[%emt 0:01:35]} 7. Bxc6+ {[%emt 0:00:49]} bxc6 {[%emt 0:00:05]} 8.
Ne5 {[%emt 0:00:20]} Qc7 {[%emt 0:05:30]} 9. d3 {[%emt 0:05:42]} a5 {[%emt 0:
00:00]} 10. a4 {[%emt 0:03:29]} Ba6 {[%emt 0:02:54]} 11. Nd2 {[%emt 0:00:37]}
O-O {[%emt 0:07:21]} 12. O-O {[%emt 0:01:07]} Nd7 {[%emt 0:08:30]} 13. Qg4 {
[%emt 0:04:11]} f5 {[%emt 0:01:30]} 14. Qh3 {[%emt 0:02:26]} Nxe5 {[%emt 0:00:
00]} 15. Bxe5 {[%emt 0:02:50]} Qd7 {[%emt 0:00:09]} 16. Nf3 {[%emt 0:01:42]}
Bf6 {[%emt 0:09:20]} 17. Rad1 {[%emt 0:05:50]} Rad8 {[%emt 0:02:13]} 18. Qg3 {
[%emt 0:07:20]} Kh8 {[%emt 0:01:15]} 19. Qe1 {[%emt 0:01:11]} Ra8 {[%emt 0:00:
00]} 20. Rf2 {[%emt 0:08:25]} Bc8 {[%emt 0:03:46]} 21. Qc3 {[%emt 0:07:25]} Qe7
{[%emt 0:00:55]} 22. d4 {[%emt 0:05:27]} cxd4 {[%emt 0:07:26]} 23. exd4 {
[%emt 0:00:53]} Bd7 {[%emt 0:00:34]} 24. Re2 {[%emt 0:07:12]} Rfc8 {[%emt 0:00:
00]} 25. Bxf6 {[%emt 0:01:24]} gxf6 {[%emt 0:00:13]} 26. Nh4 {[%emt 0:01:50]}
Qf7 {[%emt 0:00:42]} 27. Rd3 {[%emt 0:04:10]} Rg8 {[%emt 0:03:37]} 28. Rh3 {
[%emt 0:01:42]} Rg4 {[%emt 0:01:46]} 29. Qc5 {[%emt 0:07:46]} Rag8 {[%emt 0:00:
00]} 30. Qd6 {[%emt 0:03:01]} Qh5 {[%emt 0:00:56]} 31. Qxd7 {[%emt 0:09:44]}
Rxh4 {[%emt 0:00:34]} 32. Rxh4 {[%emt 0:00:43]} Qxh4 {[%emt 0:00:22]} 33. Qxe6
{[%emt 0:01:19]} h5 {[%emt 0:01:56]} 34. Qxf5 {[%emt 0:00:57]} 1-0

[Event "44th Chess Olympiad Women 2022"]
[Site "Chennai"]
[Date "2022.08.07"]
[Round "9.30"]
[White "Kakulidis, Ellen"]
[Black "Abrorova, Sabrina"]
[Result "1/2-1/2"]
[WhiteElo "2057"]
[BlackElo "1799"]
[Annotator "NA RC"]
[PlyCount "123"]
[EventDate "2022.??.??"]
[TimeControl "60"]

1. d4 {[%emt 0:00:03]} Nf6 {[%emt 0:00:15]} 2. Nf3 {[%emt 0:00:04]} g6 {
[%emt 0:00:24]} 3. g3 {[%emt 0:00:06]} Bg7 {[%emt 0:00:27]} 4. Bg2 {[%emt 0:00:
00]} O-O {[%emt 0:00:18]} 5. O-O {[%emt 0:00:05]} d6 {[%emt 0:00:37]} 6. Re1 {
[%emt 0:00:05]} Nbd7 {[%emt 0:01:13]} 7. e4 {[%emt 0:00:07]} e5 {[%emt 0:00:54]
} 8. Nc3 {[%emt 0:00:10]} exd4 {[%emt 0:05:06]} 9. Nxd4 {[%emt 0:00:13]} Re8 {
[%emt 0:00:24]} 10. h3 {[%emt 0:09:50]} Nc5 {[%emt 0:08:32]} 11. a4 {[%emt 0:
00:00]} c6 {[%emt 0:08:39]} 12. g4 {[%emt 0:05:53]} a5 {[%emt 0:03:45]} 13. Bf4
{[%emt 0:12:55]} Qb6 {[%emt 0:18:35]} 14. Be3 {[%emt 0:18:02]} Nfd7 {[%emt 0:
00:00]} 15. Nb3 {[%emt 0:03:22]} Qc7 {[%emt 0:00:46]} 16. Nxc5 {[%emt 0:01:50]}
Nxc5 {[%emt 0:03:01]} 17. Bd4 {[%emt 0:03:04]} Be5 {[%emt 0:02:02]} 18. Qd2 {
[%emt 0:01:10]} Ne6 {[%emt 0:00:59]} 19. Be3 {[%emt 0:00:54]} Bg7 {[%emt 0:00:
00]} 20. Rad1 {[%emt 0:02:27]} Bf8 {[%emt 0:02:19]} 21. f4 {[%emt 0:01:02]} Nc5
{[%emt 0:01:36]} 22. Qf2 {[%emt 0:03:46]} Qb6 {[%emt 0:09:07]} 23. b3 {[%emt 0:
00:00]} Qb4 {[%emt 0:05:13]} 24. Bd4 {[%emt 0:04:38]} Ne6 {[%emt 0:03:50]} 25.
Bf6 {[%emt 0:00:38]} Qc5 {[%emt 0:00:45]} 26. Re3 {[%emt 0:05:27]} Bg7 {
[%emt 0:01:47]} 27. Bxg7 {[%emt 0:00:51]} Kxg7 {[%emt 0:01:16]} 28. Ne2 {
[%emt 0:04:22]} b5 {[%emt 0:01:54]} 29. f5 {[%emt 0:02:26]} Nc7 {[%emt 0:00:25]
} 30. Rc3 {[%emt 0:02:14]} Qxf2+ {[%emt 0:02:19]} 31. Kxf2 {[%emt 0:00:01]}
bxa4 {[%emt 0:01:26]} 32. bxa4 {[%emt 0:00:46]} Na6 {[%emt 0:00:43]} 33. Rxd6 {
[%emt 0:02:23]} Nb4 {[%emt 0:00:38]} 34. Rc5 {[%emt 0:02:07]} Bb7 {[%emt 0:00:
00]} 35. c3 {[%emt 0:00:54]} Na6 {[%emt 0:00:20]} 36. Rxa5 {[%emt 0:01:00]}
Red8 {[%emt 0:00:30]} 37. Rxd8 {[%emt 0:01:01]} Rxd8 {[%emt 0:00:01]} 38. e5 {
[%emt 0:00:53]} gxf5 {[%emt 0:00:41]} 39. gxf5 {[%emt 0:00:09]} Kh6 {[%emt 0:
00:00]} 40. Bxc6 {[%emt 0:00:40]} Bc8 {[%emt 0:00:15]} 41. Be4 {[%emt 0:30:48]}
Nc7 {[%emt 0:03:48]} 42. Nd4 {[%emt 0:00:00]} Kg5 {[%emt 0:00:28]} 43. Nf3+ {
[%emt 0:00:00]} Kf4 {[%emt 0:01:12]} 44. Bc2 {[%emt 0:00:00]} Bxf5 {[%emt 0:00:
00]} 45. Bxf5 {[%emt 0:00:00]} Kxf5 {[%emt 0:00:01]} 46. Ra7 {[%emt 0:00:00]}
Rc8 {[%emt 0:14:02]} 47. Rb7 {[%emt 0:00:00]} Nd5 {[%emt 0:06:09]} 48. Rxf7+ {
[%emt 0:00:00]} Ke6 {[%emt 0:04:23]} 49. Rxh7 {[%emt 0:00:00]} Rxc3 {[%emt 0:
00:00]} 50. Rh6+ {[%emt 0:00:00]} Kf5 {[%emt 0:00:37]} 51. Rh5+ {[%emt 0:00:00]
} Kf4 {[%emt 0:01:05]} 52. Rh4+ {[%emt 0:00:00]} Kf5 {[%emt 0:00:22]} 53. Rd4 {
[%emt 0:00:00]} Nf4 {[%emt 0:00:56]} 54. h4 {[%emt 0:00:00]} Rc2+ {[%emt 0:00:
00]} 55. Rd2 {[%emt 0:01:58]} Rc4 {[%emt 0:00:24]} 56. a5 {[%emt 0:02:00]} Ra4
{[%emt 0:00:21]} 57. Nd4+ {[%emt 0:01:24]} Kxe5 {[%emt 0:00:33]} 58. Nc6+ {
[%emt 0:00:11]} Ke4 {[%emt 0:01:05]} 59. a6 {[%emt 0:03:13]} Rxa6 {[%emt 0:00:
00]} 60. Rd4+ {[%emt 0:00:23]} Kf5 {[%emt 0:00:12]} 61. Rc4 {[%emt 0:01:05]}
Ra2+ {[%emt 0:00:23]} 62. Ke1 {[%emt 0:00:02]} 1/2-1/2

[Event "44th Chess Olympiad Women 2022"]
[Site "Chennai"]
[Date "2022.08.07"]
[Round "9.30"]
[White "Saidova, Rukhshona"]
[Black "Steffensen, Elena"]
[Result "0-1"]
[WhiteElo "1624"]
[BlackElo "2044"]
[Annotator "NA RC"]
[PlyCount "72"]
[EventDate "2022.??.??"]
[TimeControl "60"]

1. e4 {[%emt 0:00:16]} g6 {[%emt 0:00:04]} 2. d4 {[%emt 0:00:15]} Bg7 {[%emt 0:
00:00]} 3. Nf3 {[%emt 0:00:22]} c6 {[%emt 0:00:23]} 4. c4 {[%emt 0:00:52]} d6 {
[%emt 0:00:37]} 5. Nc3 {[%emt 0:00:53]} e5 {[%emt 0:00:26]} 6. d5 {[%emt 0:00:
00]} Ne7 {[%emt 0:05:22]} 7. Bd3 {[%emt 0:04:53]} O-O {[%emt 0:04:14]} 8. h4 {
[%emt 0:04:16]} Bg4 {[%emt 0:07:08]} 9. Qb3 {[%emt 0:01:23]} Na6 {[%emt 0:00:
00]} 10. Nh2 {[%emt 0:01:54]} Bd7 {[%emt 0:01:41]} 11. g4 {[%emt 0:03:04]} Nc5
{[%emt 0:11:07]} 12. Qc2 {[%emt 0:00:23]} b5 {[%emt 0:01:13]} 13. Be3 {[%emt 0:
00:00]} Nxd3+ {[%emt 0:01:26]} 14. Qxd3 {[%emt 0:00:13]} bxc4 {[%emt 0:00:10]}
15. Qxc4 {[%emt 0:00:52]} cxd5 {[%emt 0:00:09]} 16. Nxd5 {[%emt 0:00:28]} Rc8 {
[%emt 0:01:05]} 17. Nxe7+ {[%emt 0:18:03]} Qxe7 {[%emt 0:00:09]} 18. Bg5 {
[%emt 0:00:54]} Rxc4 {[%emt 0:01:44]} 19. Bxe7 {[%emt 0:00:15]} Rxe4+ {[%emt 0:
00:00]} 20. Kf1 {[%emt 0:00:26]} Rc8 {[%emt 0:02:09]} 21. Kg2 {[%emt 0:03:24]}
d5 {[%emt 0:05:25]} 22. Rac1 {[%emt 0:07:13]} Rec4 {[%emt 0:01:55]} 23. Rxc4 {
[%emt 0:01:58]} Rxc4 {[%emt 0:00:02]} 24. b3 {[%emt 0:00:41]} Rc2 {[%emt 0:00:
00]} 25. Rd1 {[%emt 0:01:13]} d4 {[%emt 0:01:17]} 26. Nf1 {[%emt 0:01:46]} Bxg4
{[%emt 0:02:37]} 27. Re1 {[%emt 0:02:38]} f6 {[%emt 0:06:22]} 28. Kg3 {[%emt 0:
00:00]} h5 {[%emt 0:02:28]} 29. f3 {[%emt 0:00:41]} Be6 {[%emt 0:01:23]} 30. f4
{[%emt 0:00:26]} Bd5 {[%emt 0:04:49]} 31. Rd1 {[%emt 0:03:11]} Kf7 {[%emt 0:00:
00]} 32. Bb4 {[%emt 0:00:41]} Bh6 {[%emt 0:05:29]} 33. fxe5 {[%emt 0:03:25]}
fxe5 {[%emt 0:03:31]} 34. Bd2 {[%emt 0:00:57]} Bf8 {[%emt 0:00:25]} 35. Rc1 {
[%emt 0:00:23]} Rxa2 {[%emt 0:00:37]} 36. Rc7+ {[%emt 0:01:58]} Ke6 {[%emt 0:
00:00]} 0-1

[Event "44th Chess Olympiad Women 2022"]
[Site "Chennai"]
[Date "2022.08.07"]
[Round "9.31"]
[White "Ayzenberg, Alena"]
[Black "Ning, Isabelle Yixuan"]
[Result "1-0"]
[WhiteElo "2023"]
[BlackElo "1853"]
[Annotator "NA RC"]
[PlyCount "143"]
[EventDate "2022.??.??"]
[TimeControl "60"]

1. d4 {[%emt 0:00:03]} Nf6 {[%emt 0:00:15]} 2. c4 {[%emt 0:00:06]} g6 {[%emt 0:
00:00]} 3. Nc3 {[%emt 0:00:11]} Bg7 {[%emt 0:00:06]} 4. e4 {[%emt 0:00:07]} d6
{[%emt 0:00:09]} 5. Nf3 {[%emt 0:00:15]} O-O {[%emt 0:00:13]} 6. Be2 {[%emt 0:
00:00]} Nbd7 {[%emt 0:00:15]} 7. O-O {[%emt 0:00:28]} e5 {[%emt 0:00:17]} 8. d5
{[%emt 0:00:47]} Nc5 {[%emt 0:00:38]} 9. Qc2 {[%emt 0:00:29]} a5 {[%emt 0:00:
00]} 10. Be3 {[%emt 0:06:17]} Nfd7 {[%emt 0:08:49]} 11. Bg5 {[%emt 0:03:49]} f6
{[%emt 0:03:59]} 12. Bh4 {[%emt 0:01:27]} Qe8 {[%emt 0:08:45]} 13. Nb5 {
[%emt 0:02:04]} Na6 {[%emt 0:02:36]} 14. Rfe1 {[%emt 0:08:54]} f5 {[%emt 0:00:
00]} 15. exf5 {[%emt 0:02:47]} gxf5 {[%emt 0:00:44]} 16. Ng5 {[%emt 0:03:50]}
Nf6 {[%emt 0:05:29]} 17. c5 {[%emt 0:17:01]} h6 {[%emt 0:10:59]} 18. Ne6 {
[%emt 0:03:26]} Bxe6 {[%emt 0:01:10]} 19. dxe6 {[%emt 0:00:06]} Qxe6 {[%emt 0:
00:00]} 20. cxd6 {[%emt 0:06:52]} cxd6 {[%emt 0:00:33]} 21. Nd4 {[%emt 0:04:26]
} Qd7 {[%emt 0:12:02]} 22. Nxf5 {[%emt 0:05:09]} Nb4 {[%emt 0:03:07]} 23. Qb3+
{[%emt 0:00:55]} Kh8 {[%emt 0:01:12]} 24. Nxg7 {[%emt 0:02:27]} Qxg7 {[%emt 0:
00:00]} 25. Rac1 {[%emt 0:07:07]} Nfd5 {[%emt 0:04:57]} 26. a3 {[%emt 0:03:51]}
Nf4 {[%emt 0:00:18]} 27. Bg3 {[%emt 0:01:03]} Nc6 {[%emt 0:02:36]} 28. Bxf4 {
[%emt 0:04:47]} exf4 {[%emt 0:01:05]} 29. Bf3 {[%emt 0:01:49]} Ne5 {[%emt 0:00:
00]} 30. Qd5 {[%emt 0:00:49]} Rg8 {[%emt 0:03:05]} 31. Qxb7 {[%emt 0:02:15]}
Nxf3+ {[%emt 0:06:11]} 32. Qxf3 {[%emt 0:00:07]} Rab8 {[%emt 0:00:45]} 33. Rc4
{[%emt 0:04:28]} Rb3 {[%emt 0:03:24]} 34. Qd5 {[%emt 0:01:58]} Rb5 {[%emt 0:00:
00]} 35. Qf3 {[%emt 0:01:14]} Rxb2 {[%emt 0:02:13]} 36. Rxf4 {[%emt 0:01:06]}
Rb3 {[%emt 0:06:47]} 37. Qd5 {[%emt 0:01:05]} Rb5 {[%emt 0:00:49]} 38. Qf3 {
[%emt 0:00:36]} Rb3 {[%emt 0:01:44]} 39. Qe4 {[%emt 0:02:18]} Rb5 {[%emt 0:00:
00]} 40. g3 {[%emt 0:01:44]} Re5 {[%emt 0:00:47]} 41. Qb1 {[%emt 0:30:10]} Qg5
{[%emt 0:06:35]} 42. Rf7 {[%emt 0:00:00]} Qg6 {[%emt 0:00:44]} 43. Rb7 {
[%emt 0:00:00]} Rxe1+ {[%emt 0:04:08]} 44. Qxe1 {[%emt 0:00:00]} Re8 {[%emt 0:
00:00]} 45. Qc3+ {[%emt 0:00:00]} Kg8 {[%emt 0:00:18]} 46. Qc4+ {[%emt 0:00:00]
} Kh8 {[%emt 0:00:37]} 47. Qc3+ {[%emt 0:00:00]} Kg8 {[%emt 0:00:14]} 48. Qb3+
{[%emt 0:00:00]} Kh8 {[%emt 0:01:44]} 49. Qb1 {[%emt 0:00:00]} Qxb1+ {[%emt 0:
00:00]} 50. Rxb1 {[%emt 0:00:00]} Re4 {[%emt 0:00:40]} 51. Rd1 {[%emt 0:00:00]}
Ra4 {[%emt 0:00:35]} 52. Rxd6 {[%emt 0:00:00]} Rxa3 {[%emt 0:00:11]} 53. Rxh6+
{[%emt 0:00:00]} Kg7 {[%emt 0:00:13]} 54. Ra6 {[%emt 0:00:00]} a4 {[%emt 0:00:
00]} 55. Kg2 {[%emt 0:00:00]} Ra1 {[%emt 0:00:32]} 56. h4 {[%emt 0:00:00]} a3 {
[%emt 0:00:16]} 57. h5 {[%emt 0:00:00]} a2 {[%emt 0:01:04]} 58. g4 {[%emt 0:00:
00]} Kh7 {[%emt 0:00:30]} 59. g5 {[%emt 0:00:00]} Kg7 {[%emt 0:00:19]} 60. Ra7+
{[%emt 0:00:00]} Kh8 {[%emt 0:00:22]} 61. h6 {[%emt 0:02:42]} Rb1 {[%emt 0:00:
00]} 62. Rxa2 {[%emt 0:00:21]} Kh7 {[%emt 0:00:46]} 63. Ra7+ {[%emt 0:02:50]}
Kg8 {[%emt 0:00:24]} 64. g6 {[%emt 0:00:53]} Rb8 {[%emt 0:00:12]} 65. Kg3 {
[%emt 0:01:36]} Rb3+ {[%emt 0:00:20]} 66. Kg4 {[%emt 0:00:22]} Rb4+ {[%emt 0:
00:00]} 67. f4 {[%emt 0:00:26]} Rb8 {[%emt 0:00:14]} 68. Kg5 {[%emt 0:00:29]}
Kh8 {[%emt 0:00:13]} 69. f5 {[%emt 0:00:43]} Rc8 {[%emt 0:00:20]} 70. h7 {
[%emt 0:02:24]} Rb8 {[%emt 0:00:43]} 71. Kh6 {[%emt 0:00:22]} Rb7 {[%emt 0:00:
00]} 72. Ra8+ {[%emt 0:00:08]} 1-0

[Event "44th Chess Olympiad Women 2022"]
[Site "Chennai"]
[Date "2022.08.07"]
[Round "9.31"]
[White "Machlik, Monika"]
[Black "Zhang, Jasmine Haomo"]
[Result "1/2-1/2"]
[WhiteElo "2111"]
[BlackElo "1972"]
[Annotator "NA RC"]
[PlyCount "69"]
[EventDate "2022.??.??"]
[TimeControl "60"]

1. d4 {[%emt 0:00:01]} d5 {[%emt 0:00:10]} 2. c4 {[%emt 0:00:04]} e6 {[%emt 0:
00:00]} 3. Nc3 {[%emt 0:00:04]} Be7 {[%emt 0:00:08]} 4. cxd5 {[%emt 0:00:04]}
exd5 {[%emt 0:00:05]} 5. Bf4 {[%emt 0:00:17]} c6 {[%emt 0:00:59]} 6. e3 {
[%emt 0:00:04]} Bf5 {[%emt 0:00:25]} 7. Nge2 {[%emt 0:01:07]} Nd7 {[%emt 0:00:
00]} 8. Ng3 {[%emt 0:01:40]} Bg6 {[%emt 0:00:12]} 9. Be2 {[%emt 0:00:46]} Nb6 {
[%emt 0:01:19]} 10. O-O {[%emt 0:08:25]} Nf6 {[%emt 0:04:47]} 11. Bd3 {[%emt 0:
00:00]} Bxd3 {[%emt 0:06:13]} 12. Qxd3 {[%emt 0:02:10]} O-O {[%emt 0:00:35]}
13. Rab1 {[%emt 0:06:56]} a5 {[%emt 0:02:48]} 14. h3 {[%emt 0:05:13]} Bd6 {
[%emt 0:05:16]} 15. Bxd6 {[%emt 0:02:28]} Qxd6 {[%emt 0:00:06]} 16. Rfe1 {
[%emt 0:05:48]} Rfe8 {[%emt 0:04:36]} 17. Rbc1 {[%emt 0:06:25]} Re6 {[%emt 0:
00:00]} 18. Qc2 {[%emt 0:05:50]} g6 {[%emt 0:04:01]} 19. Nge2 {[%emt 0:04:53]}
Re7 {[%emt 0:07:07]} 20. Nf4 {[%emt 0:01:50]} Rae8 {[%emt 0:04:42]} 21. Nd3 {
[%emt 0:03:59]} Nfd7 {[%emt 0:03:59]} 22. Na4 {[%emt 0:03:23]} Qc7 {[%emt 0:00:
00]} 23. Nxb6 {[%emt 0:06:14]} Nxb6 {[%emt 0:01:32]} 24. Nc5 {[%emt 0:02:11]}
Nc8 {[%emt 0:04:26]} 25. Nd3 {[%emt 0:02:20]} Nd6 {[%emt 0:00:44]} 26. Ne5 {
[%emt 0:02:38]} Kg7 {[%emt 0:05:04]} 27. Qd1 {[%emt 0:00:55]} f6 {[%emt 0:00:
00]} 28. Nd3 {[%emt 0:00:15]} Nf5 {[%emt 0:01:36]} 29. Qd2 {[%emt 0:00:58]} Nd6
{[%emt 0:00:41]} 30. Qd1 {[%emt 0:02:30]} Ne4 {[%emt 0:03:16]} 31. Nc5 {
[%emt 0:01:57]} Nd6 {[%emt 0:00:27]} 32. Nd3 {[%emt 0:01:56]} Ne4 {[%emt 0:00:
00]} 33. Nc5 {[%emt 0:00:09]} Nd6 {[%emt 0:00:14]} 34. Nd3 {[%emt 0:00:41]} Ne4
{[%emt 0:00:51]} 35. Nc5 {[%emt 0:01:20]} 1/2-1/2

[Event "44th Chess Olympiad Women 2022"]
[Site "Chennai"]
[Date "2022.08.07"]
[Round "9.31"]
[White "Punsalan, Vyanla M"]
[Black "Machlik, Edit"]
[Result "0-1"]
[WhiteElo "1895"]
[BlackElo "2084"]
[Annotator "NA"]
[PlyCount "84"]
[EventDate "2022.??.??"]
[TimeControl "60"]

1. e4 {[%emt 0:00:09]} c5 {[%emt 0:00:07]} 2. c3 {[%emt 0:00:13]} d5 {[%emt 0:
00:00]} 3. exd5 {[%emt 0:00:20]} Qxd5 {[%emt 0:00:14]} 4. d4 {[%emt 0:00:14]}
Nf6 {[%emt 0:00:36]} 5. Nf3 {[%emt 0:00:59]} e6 {[%emt 0:00:18]} 6. Be2 {
[%emt 0:01:28]} Be7 {[%emt 0:00:41]} 7. Na3 {[%emt 0:02:32]} a6 {[%emt 0:09:07]
} 8. Nc4 {[%emt 0:08:10]} Nbd7 {[%emt 0:02:09]} 9. a4 {[%emt 0:19:37]} O-O {
[%emt 0:25:45]} 10. O-O {[%emt 0:00:00]} cxd4 {[%emt 0:18:43]} 11. Nxd4 {
[%emt 0:02:01]} Bc5 {[%emt 0:07:49]} 12. Ne3 {[%emt 0:09:27]} Qd6 {[%emt 0:00:
00]} 13. Nc4 {[%emt 0:02:32]} Qd5 {[%emt 0:01:42]} 14. Ne3 {[%emt 0:04:57]} Qd6
{[%emt 0:00:06]} 15. Nc4 {[%emt 0:05:56]} Qc7 {[%emt 0:01:27]} 16. Re1 {
[%emt 0:03:54]} b6 {[%emt 0:01:57]} 17. b4 {[%emt 0:07:31]} Be7 {[%emt 0:01:13]
} 18. Bf3 {[%emt 0:05:26]} Bb7 {[%emt 0:01:55]} 19. Bxb7 {[%emt 0:04:45]} Qxb7
{[%emt 0:00:03]} 20. Nf5 {[%emt 0:05:03]} Bd8 {[%emt 0:05:58]} 21. Nfd6 {
[%emt 0:01:32]} Qb8 {[%emt 0:00:59]} 22. Qf3 {[%emt 0:04:26]} Bc7 {[%emt 0:00:
00]} 23. Qc6 {[%emt 0:01:59]} Ra7 {[%emt 0:07:16]} 24. Bf4 {[%emt 0:03:04]} Nd5
{[%emt 0:01:43]} 25. Bg3 {[%emt 0:00:23]} Qd8 {[%emt 0:01:48]} 26. Nb7 {
[%emt 0:02:01]} Qb8 {[%emt 0:01:23]} 27. Bxc7 {[%emt 0:01:01]} Qxb7 {[%emt 0:
00:00]} 28. Qxb7 {[%emt 0:01:50]} Rxb7 {[%emt 0:00:01]} 29. Bd6 {[%emt 0:00:12]
} Rc8 {[%emt 0:00:23]} 30. Ne3 {[%emt 0:00:35]} Nxc3 {[%emt 0:02:34]} 31. Kf1 {
[%emt 0:00:28]} Ne4 {[%emt 0:00:21]} 32. Red1 {[%emt 0:01:20]} Nxd6 {[%emt 0:
00:00]} 33. Rxd6 {[%emt 0:00:04]} Kf8 {[%emt 0:00:37]} 34. Rad1 {[%emt 0:01:14]
} Ke7 {[%emt 0:00:10]} 35. Ke2 {[%emt 0:00:10]} Ne5 {[%emt 0:01:01]} 36. a5 {
[%emt 0:01:27]} Nc4 {[%emt 0:02:07]} 37. Nxc4 {[%emt 0:00:56]} Rxc4 {[%emt 0:
00:00]} 38. axb6 {[%emt 0:00:03]} Rxb4 {[%emt 0:00:23]} 39. Rd8 {[%emt 0:00:17]
} R4xb6 {[%emt 0:00:25]} 40. Rh8 {[%emt 0:00:31]} h6 {[%emt 0:00:38]} 41. Rg8 {
[%emt 0:30:41]} Kf6 {[%emt 0:03:57]} 42. g3 {[%emt 0:00:00]} Rb2+ {[%emt 0:00:
00]} 0-1